fUST/lending_fUST_20260507
["ID","MTS","AMOUNT","RATE_DAILY","PERIOD"]
[421767762,1778123443000,-948.67,0.00012909,2]
[421767767,1778123443000,-4532.93,0.00012909,2]
[421767774,1778123443000,-622.55,0.00012909,2]
[421767769,1778123443000,-911.82,0.00012909,2]
[421767787,1778123443000,-356.58,0.0001291,2]
[421767775,1778123443000,-731.53,0.00012909,2]
[421767764,1778123443000,-500.0,0.00012909,2]
[421767789,1778123443000,-500.0,0.0001291,2]
[421767791,1778123443000,-628.57,0.0001291,2]
[421767788,1778123443000,-218.13350394,0.0001291,2]
[421767794,1778123443000,-500.0,0.0001291,2]
[421767793,1778123443000,-500.0,0.0001291,2]
[421767792,1778123443000,-500.0,0.0001291,2]
[421767795,1778123443000,-532.25599982,0.0001291,2]
[421767777,1778123443000,-500.0,0.00012909,2]
[421767797,1778123443000,-500.0,0.0001291,2]
[421767798,1778123443000,-211.21716126,0.0001291,2]
[421767781,1778123443000,-576.65406376,0.00012909,2]
[421767848,1778123443000,-500.0,0.0001291,2]
[421767763,1778123443000,-597.99,0.00012909,2]
[421767844,1778123443000,-500.0,0.0001291,2]
[421767923,1778123443000,-2413.05868585,0.00012912,2]
[421767850,1778123443000,-500.0,0.0001291,2]
[421767906,1778123443000,-500.0,0.0001291,2]
[421767894,1778123443000,-581.07,0.0001291,2]
[421767907,1778123443000,-500.0,0.0001291,2]
[421767901,1778123443000,-500.0,0.0001291,2]
[421767897,1778123443000,-500.0,0.0001291,2]
[421767896,1778123443000,-500.0,0.0001291,2]
[421767898,1778123443000,-500.0,0.0001291,2]
[421767899,1778123443000,-624.35,0.0001291,2]
[421767903,1778123443000,-524.23,0.0001291,2]
[421767900,1778123443000,-500.0,0.0001291,2]
[421767904,1778123443000,-500.0,0.0001291,2]
[421767902,1778123443000,-500.0,0.0001291,2]
[421767909,1778123443000,-1793.7759,0.0001291,2]
[421767895,1778123443000,-500.0,0.0001291,2]
[421767919,1778123443000,-451.56382896,0.0001291,2]
[421767921,1778123443000,-207532.4946371,0.00012912,2]
[421767910,1778123443000,-412.88021733,0.0001291,2]
[421767916,1778123443000,-500.0,0.0001291,2]
[421767914,1778123443000,-500.0,0.0001291,2]
[421767912,1778123443000,-500.0,0.0001291,2]
[421767917,1778123443000,-500.0,0.0001291,2]
[421767911,1778123443000,-500.0,0.0001291,2]
[421767913,1778123443000,-500.0,0.0001291,2]
[421767915,1778123443000,-500.0,0.0001291,2]
[421767918,1778123443000,-500.0,0.0001291,2]
[421767922,1778123443000,-985.41048548,0.00012912,2]
[421767924,1778123443000,-61412.63333402,0.00012912,2]
[421767925,1778123443000,-16120.28039086,0.00012912,2]
[421767920,1778123443000,-358.77271058,0.0001291,2]
[421767892,1778123443000,-500.0,0.0001291,2]
[421767905,1778123443000,-500.0,0.0001291,2]
[421767885,1778123443000,-500.0,0.0001291,2]
[421767851,1778123443000,-500.0,0.0001291,2]
[421767856,1778123443000,-500.0,0.0001291,2]
[421767859,1778123443000,-500.0,0.0001291,2]
[421767858,1778123443000,-500.0,0.0001291,2]
[421767868,1778123443000,-812.03,0.0001291,2]
[421767863,1778123443000,-500.0,0.0001291,2]
[421767861,1778123443000,-500.0,0.0001291,2]
[421767871,1778123443000,-500.0,0.0001291,2]
[421767875,1778123443000,-500.0,0.0001291,2]
[421767874,1778123443000,-500.0,0.0001291,2]
[421767872,1778123443000,-500.0,0.0001291,2]
[421767865,1778123443000,-500.0,0.0001291,2]
[421767887,1778123443000,-500.0,0.0001291,2]
[421767876,1778123443000,-500.0,0.0001291,2]
[421767866,1778123443000,-500.0,0.0001291,2]
[421767879,1778123443000,-500.0,0.0001291,2]
[421767891,1778123443000,-500.0,0.0001291,2]
[421767886,1778123443000,-500.0,0.0001291,2]
[421767882,1778123443000,-500.0,0.0001291,2]
[421767877,1778123443000,-500.0,0.0001291,2]
[421767888,1778123443000,-500.0,0.0001291,2]
[421767883,1778123443000,-500.0,0.0001291,2]
[421767884,1778123443000,-500.0,0.0001291,2]
[421767889,1778123443000,-500.0,0.0001291,2]
[421767881,1778123443000,-500.0,0.0001291,2]
[421767890,1778123443000,-500.0,0.0001291,2]
[421767880,1778123443000,-500.0,0.0001291,2]
[421767878,1778123443000,-500.0,0.0001291,2]
[421767893,1778123443000,-500.0,0.0001291,2]
[421767847,1778123443000,-500.0,0.0001291,2]
[421767926,1778123444000,-382.91828592,0.00012912,2]
[421767930,1778123444000,-407.64,0.00012912,2]
[421767927,1778123444000,-2700.0000006,0.00012912,2]
[421767929,1778123444000,-12633.43205016,0.00012912,2]
[421767928,1778123444000,-1588.66910052,0.00012912,2]
[421767951,1778123447000,-778.19,0.00012909,2]
[421767952,1778123447000,-1816.29434591,0.00012912,2]
[421769354,1778124640000,-389.9284953,0.0001144,2]
[421769393,1778124643000,-141.88703188,0.00012467,2]
[421769392,1778124643000,-358.11296812,0.00012467,2]
[421769396,1778124643000,-374.63107339,0.00012467,2]
[421769406,1778124643000,-500.0,0.00012534,2]
[421769407,1778124643000,-500.0,0.00012534,2]
[421769395,1778124643000,-13.76226308,0.00012467,2]
[421769408,1778124643000,-500.0,0.00012534,2]
[421769397,1778124643000,-125.36892661,0.00012467,2]
[421769398,1778124643000,-500.0,0.00012467,2]
[421769399,1778124643000,-232.86748706,0.00012467,2]
[421769404,1778124643000,-500.0,0.00012534,2]
[421769401,1778124643000,-500.0,0.00012534,2]
[421769405,1778124643000,-500.0,0.00012534,2]
[421769391,1778124643000,-185.26859033,0.00012467,2]
[421769390,1778124643000,-314.73140967,0.00012467,2]
[421769387,1778124643000,-551.27535768,0.00012467,2]
[421769388,1778124643000,-500.0,0.00012467,2]
[421769389,1778124643000,-500.0,0.00012467,2]
[421769386,1778124643000,-500.0,0.00012467,2]
[421769385,1778124643000,-500.0,0.00012467,2]
[421769394,1778124643000,-486.23773692,0.00012467,2]
[421769383,1778124643000,-500.0,0.00012467,2]
[421769384,1778124643000,-500.0,0.00012467,2]
[421769380,1778124643000,-585.97660249,0.00011556,2]
[421769379,1778124643000,-1405.20083821,0.00011556,2]
[421769382,1778124643000,-500.0,0.00012,2]
[421769381,1778124643000,-3008.8225593,0.00011556,2]
[421769377,1778124643000,-318.73711869,0.00011498,2]
[421769378,1778124643000,-300.0,0.00011555,2]
[421769376,1778124643000,-4610.0715047,0.0001144,2]
[421769402,1778124643000,-500.0,0.00012534,2]
[421769400,1778124643000,-500.0,0.00012534,2]
[421769410,1778124643000,-500.0,0.00012534,2]
[421769428,1778124643000,-500.0,0.00012632,2]
[421769442,1778124643000,-640.90728183,0.00012633,2]
[421769441,1778124643000,-500.0,0.00012633,2]
[421769437,1778124643000,-500.0,0.00012632,2]
[421769440,1778124643000,-500.0,0.00012633,2]
[421769439,1778124643000,-500.0,0.00012633,2]
[421769438,1778124643000,-500.0,0.00012632,2]
[421769436,1778124643000,-500.0,0.00012632,2]
[421769432,1778124643000,-500.0,0.00012632,2]
[421769430,1778124643000,-500.0,0.00012632,2]
[421769431,1778124643000,-500.0,0.00012632,2]
[421769433,1778124643000,-500.0,0.00012632,2]
[421769427,1778124643000,-53742.07941055,0.0001261,2]
[421769429,1778124643000,-500.0,0.00012632,2]
[421769403,1778124643000,-500.0,0.00012534,2]
[421769426,1778124643000,-366.83945349,0.00012534,2]
[421769434,1778124643000,-500.0,0.00012632,2]
[421769423,1778124643000,-500.0,0.00012534,2]
[421769420,1778124643000,-500.0,0.00012534,2]
[421769421,1778124643000,-500.0,0.00012534,2]
[421769422,1778124643000,-500.0,0.00012534,2]
[421769409,1778124643000,-500.0,0.00012534,2]
[421769415,1778124643000,-500.0,0.00012534,2]
[421769425,1778124643000,-486.71987999,0.00012534,2]
[421769412,1778124643000,-500.0,0.00012534,2]
[421769413,1778124643000,-500.0,0.00012534,2]
[421769417,1778124643000,-500.0,0.00012534,2]
[421769419,1778124643000,-500.0,0.00012534,2]
[421769418,1778124643000,-500.0,0.00012534,2]
[421769424,1778124643000,-500.0,0.00012534,2]
[421769435,1778124643000,-500.0,0.00012632,2]
[421769416,1778124643000,-500.0,0.00012534,2]
[421769458,1778124644000,-500.0,0.00012708,2]
[421769459,1778124644000,-576.83151597,0.00012708,2]
[421769449,1778124644000,-500.0,0.00012633,2]
[421769445,1778124644000,-500.0,0.00012633,2]
[421769447,1778124644000,-573.08,0.00012633,2]
[421769446,1778124644000,-909.14,0.00012633,2]
[421769444,1778124644000,-500.0,0.00012633,2]
[421769443,1778124644000,-500.0,0.00012633,2]
[421769450,1778124644000,-500.0,0.00012633,2]
[421769448,1778124644000,-500.0,0.00012633,2]
[421769454,1778124644000,-500.0,0.00012633,2]
[421769463,1778124644000,-414.23084796,0.00012709,2]
[421769452,1778124644000,-4291.69437207,0.00012633,2]
[421769461,1778124644000,-898.42195636,0.00012709,2]
[421769465,1778124644000,-47.51271825,0.00012709,2]
[421769462,1778124644000,-9.94617335,0.00012709,2]
[421769466,1778124644000,-642.99355765,0.00012709,2]
[421769464,1778124644000,-494.13728175,0.00012709,2]
[421769451,1778124644000,-52.36562793,0.00012633,2]
[421769456,1778124644000,-596.61,0.00012633,2]
[421769455,1778124644000,-500.0,0.00012633,2]
[421769453,1778124644000,-873.83,0.00012633,2]
[421769457,1778124644000,-701.05,0.00012633,2]
[421769460,1778124644000,-442.67714997,0.00012709,2]
[421769483,1778124646000,-908.36812971,0.00012709,2]
[421769480,1778124646000,-908.36812971,0.00012709,2]
[421769482,1778124646000,-908.36812971,0.00012709,2]
[421769481,1778124646000,-908.36812971,0.00012709,2]
[421769479,1778124646000,-908.36812971,0.00012709,2]
[421769474,1778124646000,-908.36812971,0.00012709,2]
[421769476,1778124646000,-908.36812971,0.00012709,2]
[421769478,1778124646000,-908.36812971,0.00012709,2]
[421769477,1778124646000,-908.36812971,0.00012709,2]
[421769472,1778124646000,-81.31507045,0.00012709,2]
[421769485,1778124646000,-908.36812971,0.00012709,2]
[421769471,1778124646000,-136.54678336,0.00012709,2]
[421769470,1778124646000,-500.0,0.00012633,2]
[421769475,1778124646000,-908.36812971,0.00012709,2]
[421769473,1778124646000,-908.36812971,0.00012709,2]
[421769487,1778124646000,-976.49573944,0.00012709,2]
[421769486,1778124646000,-908.36812971,0.00012709,2]
[421769501,1778124646000,-12833.92034401,0.0001271,2]
[421769488,1778124646000,-976.49573944,0.00012709,2]
[421769499,1778124646000,-9758.58130913,0.0001271,2]
[421769496,1778124646000,-1017.44556078,0.00012709,2]
[421769500,1778124646000,-791.0144664,0.0001271,2]
[421769497,1778124646000,-22582.2711164,0.0001271,2]
[421769492,1778124646000,-976.49573944,0.00012709,2]
[421769502,1778124646000,-541.03249352,0.0001271,2]
[421769495,1778124646000,-1017.44556078,0.00012709,2]
[421769491,1778124646000,-976.49573944,0.00012709,2]
[421769494,1778124646000,-1017.44556078,0.00012709,2]
[421769493,1778124646000,-976.49573944,0.00012709,2]
[421769490,1778124646000,-976.49573944,0.00012709,2]
[421769489,1778124646000,-976.49573944,0.00012709,2]
[421769484,1778124646000,-908.36812971,0.00012709,2]
[421769503,1778124816000,515.21178559,0.00017497,120]
[421769505,1778124817000,515.21178559,0.00017591,120]
[421769504,1778124817000,515.21178559,0.00017544,120]
[421769719,1778125780000,10000.0,0.00019726,120]
[421769720,1778125822000,10000.0,0.00019726,120]
[421769751,1778125832000,-117.41665733,0.00010646,2]
[421769745,1778125832000,-305.668248,0.0001054,2]
[421769747,1778125832000,-3541.28686708,0.0001054,2]
[421769749,1778125832000,-1153.04488492,0.0001054,2]
[421769755,1778125832000,-397.91517571,0.00010646,2]
[421769758,1778125832000,-4484.66816696,0.00010646,2]
[421769769,1778125832000,-500.0,0.00012531,2]
[421769768,1778125832000,-500.0,0.00012531,2]
[421769771,1778125832000,-500.0,0.00012531,2]
[421769777,1778125832000,-367.01021171,0.00012531,2]
[421769775,1778125832000,-159.97309173,0.00012531,2]
[421769764,1778125832000,-181.7987809,0.00011611,2]
[421769760,1778125832000,-318.72472387,0.000107,2]
[421769766,1778125832000,-500.0,0.00012,2]
[421769762,1778125832000,-300.0,0.00011025,2]
[421769773,1778125832000,-500.0,0.00012531,2]
[421769974,1778125838000,-500.0,0.00012531,2]
[421769977,1778125838000,-500.0,0.00012531,2]
[421769975,1778125838000,-871.26,0.00012531,2]
[421769978,1778125838000,-500.0,0.00012531,2]
[421769973,1778125838000,-132.98978829,0.00012531,2]
[421769976,1778125838000,-549.2,0.00012531,2]
[421769981,1778125838000,-500.0,0.00012531,2]
[421769983,1778125838000,-837.42,0.00012531,2]
[421769982,1778125838000,-500.0,0.00012531,2]
[421769985,1778125838000,-319.99172087,0.00012531,2]
[421769984,1778125838000,-500.0,0.00012531,2]
[421769980,1778125838000,-4163.06,0.00012531,2]
[421769979,1778125838000,-500.0,0.00012531,2]
[421770101,1778125846000,-500.0,0.00012531,2]
[421770102,1778125846000,-151.14236225,0.00012531,2]
[421770099,1778125846000,-180.00827913,0.00012531,2]
[421770100,1778125846000,-500.0,0.00012531,2]
[421770105,1778126259000,1501142.13742091,0.0001972,120]
[421770106,1778126455000,-5000.0,0.00011066,2]
[421770107,1778126472000,-326.59854178,0.00011122,2]
[421770108,1778126489000,-329.47844437,0.00011178,2]
[421770110,1778126506000,-456.3009281,0.00011753,2]
[421770111,1778126523000,-458.3085187,0.00011753,2]
[421770112,1778126539000,-1200.0,0.00012296,2]
[421770116,1778126556000,-300.0,0.00012297,2]
[421770122,1778126723000,5295.81772407,7.6e-05,2]
[421770249,1778127032000,-500.0,0.0001223,2]
[421770258,1778127032000,-500.0,0.0001223,2]
[421770252,1778127032000,-500.0,0.0001223,2]
[421770254,1778127032000,-500.0,0.0001223,2]
[421770256,1778127032000,-500.0,0.0001223,2]
[421770260,1778127032000,-500.0,0.0001223,2]
[421770261,1778127032000,-500.0,0.0001223,2]
[421770271,1778127032000,-500.0,0.0001223,2]
[421770263,1778127032000,-500.0,0.0001223,2]
[421770267,1778127032000,-500.0,0.0001223,2]
[421770269,1778127032000,-500.0,0.0001223,2]
[421770281,1778127032000,-500.0,0.0001223,2]
[421770273,1778127032000,-500.0,0.0001223,2]
[421770279,1778127032000,-500.0,0.0001223,2]
[421770241,1778127032000,-500.0,0.0001223,2]
[421770265,1778127032000,-441.85445108,0.0001223,2]
[421770233,1778127032000,-300.0,0.00012229,2]
[421770205,1778127032000,-763.77151649,9.801e-05,2]
[421770235,1778127032000,-445.9208337,0.0001223,2]
[421770277,1778127032000,-500.0,0.0001223,2]
[421770209,1778127032000,-178.10792549,0.0001,2]
[421770207,1778127032000,-82.86077244,9.801e-05,2]
[421770222,1778127032000,-427.89671702,0.0001173,2]
[421770225,1778127032000,-28.37122928,0.0001173,2]
[421770227,1778127032000,-300.0,0.00012229,2]
[421770229,1778127032000,-300.0,0.00012229,2]
[421770214,1778127032000,-1226.10017633,0.0001,2]
[421770220,1778127032000,-151.0,0.0001173,2]
[421770216,1778127032000,-320.06657094,0.00010865,2]
[421770218,1778127032000,-456.3009282,0.0001173,2]
[421770231,1778127032000,-300.0,0.00012229,2]
[421770244,1778127032000,-500.0,0.0001223,2]
[421770246,1778127032000,-500.0,0.0001223,2]
[421770237,1778127032000,-506.38811256,0.0001223,2]
[421770238,1778127032000,-500.0,0.0001223,2]
[421770283,1778127032000,-500.0,0.0001223,2]
[421770275,1778127032000,-500.0,0.0001223,2]
[421770288,1778127032000,-500.0,0.0001223,2]
[421770325,1778127032000,-717.28561108,0.0001223,2]
[421770321,1778127032000,-717.28561108,0.0001223,2]
[421770331,1778127032000,-717.28561108,0.0001223,2]
[421770335,1778127032000,-717.28561108,0.0001223,2]
[421770333,1778127032000,-717.28561108,0.0001223,2]
[421770337,1778127032000,-717.28561108,0.0001223,2]
[421770347,1778127032000,-717.28561108,0.0001223,2]
[421770343,1778127032000,-717.28561108,0.0001223,2]
[421770345,1778127032000,-717.28561108,0.0001223,2]
[421770341,1778127032000,-717.28561108,0.0001223,2]
[421770339,1778127032000,-717.28561108,0.0001223,2]
[421770353,1778127032000,-762.93105906,0.0001223,2]
[421770349,1778127032000,-762.93105906,0.0001223,2]
[421770357,1778127032000,-762.93105906,0.0001223,2]
[421770359,1778127032000,-762.93105906,0.0001223,2]
[421770323,1778127032000,-717.28561108,0.0001223,2]
[421770317,1778127032000,-717.28561108,0.0001223,2]
[421770351,1778127032000,-762.93105906,0.0001223,2]
[421770327,1778127032000,-717.28561108,0.0001223,2]
[421770286,1778127032000,-500.0,0.0001223,2]
[421770329,1778127032000,-717.28561108,0.0001223,2]
[421770290,1778127032000,-500.0,0.0001223,2]
[421770292,1778127032000,-500.0,0.0001223,2]
[421770294,1778127032000,-500.0,0.0001223,2]
[421770298,1778127032000,-417.78525734,0.0001223,2]
[421770296,1778127032000,-500.0,0.0001223,2]
[421770306,1778127032000,-500.0,0.0001223,2]
[421770302,1778127032000,-500.0,0.0001223,2]
[421770300,1778127032000,-500.0,0.0001223,2]
[421770308,1778127032000,-500.0,0.0001223,2]
[421770309,1778127032000,-500.0,0.0001223,2]
[421770315,1778127032000,-717.28561108,0.0001223,2]
[421770314,1778127032000,-527.84011026,0.0001223,2]
[421770311,1778127032000,-500.0,0.0001223,2]
[421770319,1778127032000,-717.28561108,0.0001223,2]
[421770304,1778127032000,-500.0,0.0001223,2]
[421770370,1778127033000,-753.6050859,0.0001223,2]
[421770361,1778127033000,-762.93105906,0.0001223,2]
[421770372,1778127033000,-9.32597316,0.0001223,2]
[421770374,1778127033000,-1317.08556584,0.00012231,2]
[421770363,1778127033000,-762.93105906,0.0001223,2]
[421770368,1778127033000,-762.93105906,0.0001223,2]
[421770366,1778127033000,-762.93105906,0.0001223,2]
[421770441,1778127038000,-500.0,0.0001233,2]
[421770448,1778127038000,-500.0,0.0001233,2]
[421770447,1778127038000,-500.0,0.0001233,2]
[421770439,1778127038000,-802.52,0.0001233,2]
[421770443,1778127038000,-500.0,0.0001233,2]
[421770442,1778127038000,-500.0,0.0001233,2]
[421770445,1778127038000,-500.0,0.0001233,2]
[421770444,1778127038000,-500.0,0.0001233,2]
[421770437,1778127038000,-500.0,0.0001233,2]
[421770438,1778127038000,-500.0,0.0001233,2]
[421770440,1778127038000,-500.0,0.0001233,2]
[421770435,1778127038000,-221.93608751,0.0001233,2]
[421770424,1778127038000,-330.73638136,0.000123,2]
[421770432,1778127038000,-500.0,0.0001233,2]
[421770429,1778127038000,-500.0,0.0001233,2]
[421770427,1778127038000,-696.32766918,0.000123,2]
[421770428,1778127038000,-500.0,0.0001233,2]
[421770430,1778127038000,-500.0,0.0001233,2]
[421770431,1778127038000,-500.0,0.0001233,2]
[421770433,1778127038000,-834.95,0.0001233,2]
[421770425,1778127038000,-678.06617316,0.000123,2]
[421770434,1778127038000,-526.31,0.0001233,2]
[421770426,1778127038000,-619.24811452,0.000123,2]
[421770423,1778127038000,-662899.74396163,0.00012231,2]
[421770449,1778127038000,-500.0,0.0001233,2]
[421770436,1778127038000,-3989.6,0.0001233,2]
[421770450,1778127038000,-671.84,0.0001233,2]
[421770452,1778127038000,-500.0,0.0001233,2]
[421770451,1778127038000,-500.0,0.0001233,2]
[421770454,1778127038000,-500.0,0.0001233,2]
[421770472,1778127038000,-486.34,0.0001243,2]
[421770474,1778127038000,-500.0,0.0001243,2]
[421770473,1778127038000,-500.0,0.0001243,2]
[421770475,1778127038000,-500.0,0.0001243,2]
[421770471,1778127038000,-500.0,0.0001243,2]
[421770468,1778127038000,-500.0,0.0001243,2]
[421770477,1778127038000,-500.0,0.0001243,2]
[421770469,1778127038000,-500.0,0.0001243,2]
[421770476,1778127038000,-354.72,0.0001243,2]
[421770466,1778127038000,-500.0,0.0001243,2]
[421770467,1778127038000,-500.0,0.0001243,2]
[421770470,1778127038000,-237.9,0.0001243,2]
[421770465,1778127038000,-500.0,0.0001243,2]
[421770463,1778127038000,-500.0,0.0001243,2]
[421770446,1778127038000,-500.0,0.0001233,2]
[421770456,1778127038000,-500.0,0.0001233,2]
[421770455,1778127038000,-500.0,0.0001233,2]
[421770458,1778127038000,-265.07465458,0.0001243,2]
[421770453,1778127038000,-500.0,0.0001233,2]
[421770462,1778127038000,-500.0,0.0001243,2]
[421770459,1778127038000,-500.0,0.0001243,2]
[421770461,1778127038000,-500.0,0.0001243,2]
[421770460,1778127038000,-500.0,0.0001243,2]
[421770464,1778127038000,-500.0,0.0001243,2]
[421770457,1778127038000,-500.0,0.0001243,2]
[421770505,1778127039000,-500.0,0.0001253,2]
[421770504,1778127039000,-500.0,0.0001243,2]
[421770508,1778127039000,-164.72209891,0.00012531,2]
[421770506,1778127039000,-500.0,0.00012531,2]
[421770507,1778127039000,-500.0,0.00012531,2]
[421770516,1778127039000,-500.0,0.00012604,2]
[421770515,1778127039000,-500.0,0.00012532,2]
[421770511,1778127039000,-346.33909023,0.00012531,2]
[421770509,1778127039000,-500.0,0.00012531,2]
[421770512,1778127039000,-500.0,0.00012531,2]
[421770510,1778127039000,-500.0,0.00012531,2]
[421770513,1778127039000,-151.0,0.00012531,2]
[421770518,1778127039000,-500.0,0.00012604,2]
[421770519,1778127039000,-500.0,0.00012604,2]
[421770526,1778127039000,-802.52,0.00012604,2]
[421770527,1778127039000,-500.0,0.00012604,2]
[421770517,1778127039000,-500.0,0.00012604,2]
[421770521,1778127039000,-834.95,0.00012604,2]
[421770520,1778127039000,-500.0,0.00012604,2]
[421770500,1778127039000,-500.0,0.0001243,2]
[421770514,1778127039000,-151.0,0.00012531,2]
[421770501,1778127039000,-500.0,0.0001243,2]
[421770482,1778127039000,-500.0,0.0001243,2]
[421770496,1778127039000,-1793.7759,0.0001243,2]
[421770478,1778127039000,-195.85,0.0001243,2]
[421770479,1778127039000,-891.24,0.0001243,2]
[421770480,1778127039000,-500.0,0.0001243,2]
[421770488,1778127039000,-500.0,0.0001243,2]
[421770481,1778127039000,-745.77,0.0001243,2]
[421770487,1778127039000,-334.1,0.0001243,2]
[421770489,1778127039000,-239.53,0.0001243,2]
[421770485,1778127039000,-179.58,0.0001243,2]
[421770484,1778127039000,-500.0,0.0001243,2]
[421770483,1778127039000,-500.0,0.0001243,2]
[421770497,1778127039000,-500.0,0.0001243,2]
[421770486,1778127039000,-189.05,0.0001243,2]
[421770490,1778127039000,-500.0,0.0001243,2]
[421770491,1778127039000,-185.93,0.0001243,2]
[421770493,1778127039000,-500.0,0.0001243,2]
[421770502,1778127039000,-500.0,0.0001243,2]
[421770503,1778127039000,-313.59344729,0.0001243,2]
[421770492,1778127039000,-642.56,0.0001243,2]
[421770494,1778127039000,-623.58492948,0.0001243,2]
[421770495,1778127039000,-598.33,0.0001243,2]
[421770499,1778127039000,-235.27019846,0.0001243,2]
[421770498,1778127039000,-500.0,0.0001243,2]
[421770525,1778127039000,-500.0,0.00012604,2]
[421770524,1778127039000,-500.0,0.00012604,2]
[421770539,1778127039000,-8.84861882,0.00012604,2]
[421770523,1778127039000,-3989.6,0.00012604,2]
[421770565,1778127039000,-891.24,0.00012704,2]
[421770554,1778127039000,-500.0,0.00012704,2]
[421770522,1778127039000,-526.31,0.00012604,2]
[421770557,1778127039000,-500.0,0.00012704,2]
[421770556,1778127039000,-500.0,0.00012704,2]
[421770559,1778127039000,-502.45660604,0.00012704,2]
[421770560,1778127039000,-500.0,0.00012704,2]
[421770563,1778127039000,-500.0,0.00012704,2]
[421770558,1778127039000,-500.0,0.00012704,2]
[421770561,1778127039000,-217.46,0.00012704,2]
[421770564,1778127039000,-500.0,0.00012704,2]
[421770562,1778127039000,-500.0,0.00012704,2]
[421770568,1778127039000,-745.77,0.00012704,2]
[421770570,1778127039000,-500.0,0.00012704,2]
[421770569,1778127039000,-500.0,0.00012704,2]
[421770574,1778127039000,-500.0,0.00012704,2]
[421770576,1778127039000,-857.86685659,0.00012704,2]
[421770573,1778127039000,-500.0,0.00012704,2]
[421770571,1778127039000,-500.0,0.00012704,2]
[421770575,1778127039000,-598.33,0.00012704,2]
[421770572,1778127039000,-500.0,0.00012704,2]
[421770555,1778127039000,-500.0,0.00012704,2]
[421770550,1778127039000,-500.0,0.00012704,2]
[421770566,1778127039000,-500.0,0.00012704,2]
[421770549,1778127039000,-500.0,0.00012704,2]
[421770533,1778127039000,-500.0,0.00012604,2]
[421770540,1778127039000,-500.0,0.00012604,2]
[421770528,1778127039000,-500.0,0.00012604,2]
[421770530,1778127039000,-500.0,0.00012604,2]
[421770531,1778127039000,-500.0,0.00012604,2]
[421770529,1778127039000,-500.0,0.00012604,2]
[421770551,1778127039000,-169.98956702,0.00012704,2]
[421770536,1778127039000,-500.0,0.00012604,2]
[421770537,1778127039000,-671.84,0.00012604,2]
[421770535,1778127039000,-500.0,0.00012604,2]
[421770534,1778127039000,-500.0,0.00012604,2]
[421770532,1778127039000,-500.0,0.00012604,2]
[421770541,1778127039000,-71.6137778,0.00012604,2]
[421770542,1778127039000,-428.3862222,0.00012604,2]
[421770544,1778127039000,-107.3938702,0.00012604,2]
[421770553,1778127039000,-284.80346697,0.00012704,2]
[421770552,1778127039000,-500.0,0.00012704,2]
[421770545,1778127039000,-500.0,0.00012604,2]
[421770543,1778127039000,-392.6061298,0.00012604,2]
[421770546,1778127039000,-500.0,0.00012604,2]
[421770548,1778127039000,-500.0,0.00012704,2]
[421770547,1778127039000,-4140.5208109,0.00012698,2]
[421770538,1778127039000,-491.15138118,0.00012604,2]
[421770606,1778127043000,-500.0,0.0001233,2]
[421770607,1778127043000,-816.97,0.0001233,2]
[421770611,1778127043000,-211.73169277,0.00012704,2]
[421770609,1778127043000,-368.92669367,0.00012604,2]
[421770610,1778127043000,-448.04330633,0.00012604,2]